bitfinex-derivatives/quotes_ETHF0:USTF0_20250107
["timestamp","ask_amount","ask_price","bid_price","bid_amount"]
[1736267473306,2.54369725,3474.6,3473.7,2.6092]
[1736267473307,2.25573725,3474.6,3473.7,2.6092]
[1736267473514,2.25573725,3473.9,3473.4,5.8546]
[1736267473709,2.25573725,3473.6,3473.4,5.8546]
[1736267474208,2.07203,3473.8,3473.5,40.8]
[1736267474509,1.784,3473.8,3473.5,40.8]
[1736267474708,2.25573725,3473.6,3473.5,40.8]
[1736267474908,2.54377725,3473.6,3473.5,40.8]
[1736267475407,1.784,3473.8,3473.5,40.8]
[1736267475606,3.2078,3474.3,3473.6,3.2078]
[1736267475808,2.54369725,3474.7,3474.1,0.288]
[1736267476011,0.28796,3474.6,3474.2,2.5937]
[1736267476409,2.25573725,3474.4,3474.2,2.5937]
[1736267476808,2.25573725,3474.7,3474.2,2.5937]
[1736267477010,3.2078,3475.2,3474.4,3.2078]
[1736267477208,0.28792,3475.1,3474.5,2.94936]
[1736267477406,1.784,3475.5,3474.5,2.6614]
[1736267477617,1.784,3475.5,3475.3,3.2078]
[1736267477910,0.23286145,3476.1,3475.4,2.4855]
[1736267478111,2.25573725,3476.2,3476.0,0.28784]
[1736267478318,2.54354725,3476.5,3475.9,0.28785]
[1736267478610,0.28784,3476.1,3475.7,3.2078]
[1736267478809,2.54359725,3475.9,3475.7,3.2078]
[1736267479122,2.25573725,3475.9,3475.5,2.6623]
[1736267479313,2.25573725,3475.6,3475.5,2.6623]
[1736267479615,2.70492915,3475.7,3475.5,2.6623]
[1736267480410,2.99279915,3475.7,3475.5,2.6623]
[1736267480717,0.28787,3475.7,3475.5,2.6623]
[1736267480918,2.70492915,3476.1,3475.5,2.6623]
[1736267481216,3.2078,3476.7,3475.7,3.2078]
[1736267481519,0.28782,3476.4,3476.1,3.2078]
[1736267481812,0.28775,3477.2,3476.4,0.28781]
[1736267482010,2.70492915,3477.3,3476.5,2.5804]
[1736267482210,5.91272915,3477.7,3476.8,3.2078]
[1736267482408,0.2877,3477.8,3477.2,3.49554]
[1736267482616,0.22998833,3478.0,3477.3,2.6254]
[1736267482815,7.24954924,3478.1,3477.6,3.2078]
[1736267483012,1.784,3478.1,3477.8,0.28769]
[1736267483205,1.784,3478.1,3477.7,2.5804]
[1736267483817,2.07168,3478.1,3477.7,2.5804]
[1736267484017,1.784,3478.5,3477.7,2.5804]
[1736267484208,2.70492915,3478.1,3477.2,3.2078]
[1736267484410,0.28775,3477.2,3476.8,3.2078]
[1736267484609,2.99266915,3477.3,3476.8,3.2078]
[1736267484818,0.28775,3477.1,3476.8,3.2078]
[1736267485115,1.784,3477.4,3476.8,3.2078]
[1736267485318,0.28768,3478.0,3477.3,0.28773]
[1736267485512,4.9918,3478.3,3477.1,3.2078]
[1736267485718,0.28767,3478.2,3477.7,3.2078]
[1736267485914,5.27946,3478.3,3477.7,3.2078]
[1736267486119,4.9918,3478.3,3477.7,3.2078]
[1736267486412,3.2078,3478.7,3477.7,3.2078]
[1736267486614,0.28764,3478.6,3477.9,0.28769]
[1736267486822,0.28764,3478.5,3477.8,5.1713]
[1736267487118,0.28764,3478.5,3477.8,5.459]
[1736267487415,3.2078,3478.7,3477.8,5.459]
[1736267487416,3.2078,3478.7,3478.1,3.2078]
[1736267487615,0.35597224,3479.3,3478.5,3.2078]
[1736267487821,0.43139034,3479.2,3478.5,3.2078]
[1736267488008,3.56377224,3479.4,3478.5,3.2078]
[1736267488009,0.23077045,3479.4,3478.5,3.2078]
[1736267488209,3.06090139,3479.7,3478.9,3.2078]
[1736267488516,2.61372148,3480.1,3479.3,3.2078]
[1736267488709,0.143779,3480.0,3479.8,3.2078]
[1736267488918,2.61346724,3480.5,3480.4,0.28748]
[1736267489110,4.51894995,3480.9,3480.4,0.28748]
[1736267489111,4.51894995,3480.9,3480.5,0.28747]
[1736267489317,6.74192244,3481.5,3480.8,3.2078]
[1736267489515,7.86557619,3481.7,3481.4,47.00011915]
[1736267489715,7.86557619,3481.7,3481.6,0.28738]
[1736267489716,5.54667619,3481.7,3481.6,0.28738]
[1736267490014,10.1128836,3482.1,3481.6,0.28738]
[1736267490015,10.1128836,3482.1,3481.6,2.70492915]
[1736267490212,2.4326307,3482.3,3482.2,0.28733]
[1736267490516,0.35558235,3483.5,3482.7,0.28728]
[1736267490717,0.35558235,3483.5,3483.4,3.2078]
[1736267491222,19.30818235,3483.5,3482.3,2.70492915]
[1736267491420,2.70492915,3483.0,3482.2,44.0078]
[1736267491616,5.7448,3482.5,3482.2,40.8]
[1736267491821,5.7448,3482.3,3482.2,11.26613456]
[1736267492023,11.783,3482.6,3482.2,11.26613456]
[1736267492221,5.7448,3482.5,3482.2,11.26613456]
[1736267492815,6.03212,3482.3,3482.2,11.26613456]
[1736267493020,0.28732,3482.3,3482.2,11.26613456]
[1736267493319,19.23992,3482.3,3482.2,11.26613456]
[1736267493522,0.28733,3482.2,3481.6,3.2078]
[1736267493726,10.0,3482.3,3481.6,3.2078]
[1736267493920,1.43414532,3482.3,3481.6,3.2078]
[1736267494224,1.72147532,3482.2,3481.6,3.2078]
[1736267494518,1.72145532,3482.4,3481.6,3.2078]
[1736267494717,0.28729,3482.7,3482.0,3.2078]
[1736267494921,0.28732,3482.4,3482.0,3.2078]
[1736267495117,10.0,3482.7,3482.0,3.2078]
[1736267495724,13.05605279,3482.7,3481.6,3.2078]
[1736267496021,0.28737,3481.7,3481.2,3.2078]
[1736267496224,3.05605279,3482.2,3481.2,3.2078]
[1736267496420,0.28735,3482.0,3481.2,3.2078]
[1736267496621,0.28738,3481.6,3481.0,3.2078]
[1736267496823,0.28742,3481.1,3481.0,3.2078]
[1736267497022,0.28745,3480.7,3480.6,3.2078]
[1736267497221,0.28745,3480.7,3480.0,6.65746527]
[1736267497222,3.05605279,3480.7,3480.0,6.65746527]
[1736267497520,1.772,3481.0,3480.3,3.2078]
[1736267497829,0.28744,3480.9,3480.3,3.2078]
[1736267498128,11.772,3481.0,3480.3,3.2078]
[1736267498330,0.28746,3480.7,3480.3,3.2078]
[1736267498830,3.05605279,3481.2,3480.3,3.2078]
[1736267499020,3.05605279,3481.2,3478.9,3.56694169]
[1736267499021,1.772,3481.4,3480.7,3.49525]
[1736267499227,0.28739,3481.5,3480.7,3.49525]
[1736267499526,6.9889,3481.6,3480.7,3.2078]
[1736267499921,6.9889,3481.6,3480.8,0.28744]
[1736267499922,0.28739,3481.5,3480.8,0.28744]
[1736267500126,16.9889,3481.6,3480.7,3.2078]
[1736267500329,0.28739,3481.5,3480.7,3.2078]
[1736267500522,15.2169,3481.6,3480.7,3.2078]
[1736267500722,15.2169,3481.6,3480.4,40.8]
[1736267500723,0.28744,3480.8,3480.4,40.8]
[1736267500925,3.05605279,3481.2,3480.4,40.8]
[1736267501120,0.28742,3481.1,3480.4,40.8]
[1736267501324,0.28742,3481.1,3480.6,3.2078]
[1736267501525,0.28745,3480.8,3480.4,40.8]
[1736267501722,0.28745,3480.7,3480.4,40.8]
[1736267502028,0.28747,3480.5,3480.4,40.8]
[1736267502429,4.82805279,3480.7,3480.4,40.8]
[1736267502621,0.28747,3480.5,3480.4,40.8]
[1736267504030,7.49515279,3481.2,3480.4,40.8]
[1736267504235,5.2169,3481.6,3480.8,3.2078]
[1736267504422,1.772,3481.5,3480.8,3.2078]
[1736267504626,0.28744,3480.9,3480.8,3.2078]
[1736267504830,0.2874,3481.1,3480.8,44.0078]
[1736267505136,11.772,3481.5,3480.8,44.0078]
[1736267505336,0.28738,3481.3,3480.8,44.0078]
[1736267505829,10.28738,3481.3,3480.8,44.0078]
[1736267506634,0.28741,3481.0,3480.8,44.0078]
[1736267506837,0.28741,3480.9,3480.8,44.0078]
[1736267507230,10.28741,3480.9,3480.8,44.0078]
[1736267507429,10.0,3480.9,3480.8,44.0078]
[1736267507636,1.772,3481.5,3480.8,44.0078]
[1736267507833,5.2169,3481.6,3481.2,3.2078]
[1736267509539,5.2169,3481.6,3481.2,3.49519]
[1736267509839,5.2169,3481.6,3481.2,3.2078]
[1736267510042,0.23068219,3482.4,3481.2,3.2078]
[1736267510338,0.71811,3483.0,3482.3,3.2078]
[1736267510339,2.6687,3482.5,3482.3,3.2078]
[1736267510730,12.6687,3482.5,3482.4,40.8]
[1736267511128,2.6687,3482.5,3482.4,40.8]
[1736267512439,12.95597,3482.5,3482.4,40.8]
[1736267512636,0.28732,3481.9,3481.8,3.2078]
[1736267513239,0.28731,3482.1,3481.8,44.0078]
[1736267513441,0.2873,3482.2,3481.8,44.0078]
[1736267513737,2.6687,3482.5,3481.8,44.0078]
[1736267513933,12.6687,3482.5,3481.8,44.0078]
[1736267514634,0.28732,3481.9,3481.8,44.0078]
[1736267515036,10.28732,3481.9,3481.8,44.0078]
[1736267515334,10.0,3481.9,3481.8,44.0078]
[1736267515532,2.6687,3482.5,3481.8,44.0078]
[1736267515728,12.6687,3482.5,3481.8,44.0078]
[1736267515937,0.28732,3482.0,3481.8,44.0078]
[1736267516340,2.6687,3482.5,3481.8,44.0078]
[1736267516542,0.28732,3481.9,3481.8,44.0078]
[1736267516938,10.28732,3481.9,3481.8,44.0078]
[1736267517143,12.05832,3481.9,3481.8,44.0078]
[1736267519442,11.771,3481.9,3481.8,44.0078]
[1736267519742,1.771,3481.9,3481.8,44.0078]
[1736267519939,11.771,3481.9,3481.8,44.0078]
[1736267520143,12.05832,3481.9,3481.8,44.0078]
[1736267520846,11.771,3481.9,3481.8,44.0078]
[1736267521440,3.2078,3483.3,3481.8,44.0078]
[1736267521638,12.5885,3483.0,3482.6,3.2078]
[1736267522040,0.28724,3482.9,3482.7,40.8]
[1736267522250,12.5885,3483.0,3482.7,40.8]
[1736267522442,10.0,3483.0,3482.7,40.8]
[1736267522640,1.771,3483.1,3482.7,40.8]
[1736267522843,11.771,3483.1,3483.0,3.2078]
[1736267523042,10.0,3483.1,3483.0,3.2078]
[1736267523346,4.6873,3483.5,3483.0,3.2078]
[1736267523546,2.6291,3483.5,3483.1,40.8]
[1736267523756,12.6291,3483.5,3483.1,40.8]
[1736267524348,0.28722,3483.2,3483.1,40.8]
[1736267524550,12.6291,3483.5,3483.1,40.8]
[1736267525339,2.6291,3483.5,3483.4,0.2872]
[1736267525537,4.81705279,3484.1,3483.4,3.2078]
[1736267525750,0.28716,3483.9,3483.4,3.495]
[1736267525946,2.472,3484.2,3483.8,3.2078]
[1736267526154,3.34315279,3484.6,3484.1,0.28714]
[1736267526347,10.0,3484.6,3484.4,3.2078]
[1736267526552,4.233,3485.0,3484.4,3.2078]
[1736267526553,2.472,3485.0,3484.4,3.2078]
[1736267526750,12.472,3485.0,3484.8,3.2078]
[1736267527852,12.75907,3485.0,3484.8,3.2078]
[1736267528053,12.472,3485.0,3484.8,3.2078]
[1736267528252,12.472,3485.0,3484.5,0.28711]
[1736267528454,12.472,3485.0,3484.4,3.49491]
[1736267528649,12.472,3485.0,3484.2,6.65746527]
[1736267528650,12.472,3485.0,3484.8,3.2078]
[1736267528848,0.28704,3485.3,3484.8,3.2078]
[1736267528849,2.5087,3485.9,3485.0,0.28707]
[1736267529048,12.6323,3485.8,3485.5,3.2078]
[1736267529244,3.34307279,3485.6,3485.5,3.2078]
[1736267529543,3.34307279,3485.6,3485.5,44.0078]
[1736267529748,0.287,3485.8,3485.4,3.2078]
[1736267530056,10.0,3485.8,3485.4,3.2078]
[1736267530256,0.28702,3485.6,3485.4,3.2078]
[1736267530443,10.0,3485.8,3485.4,3.2078]
[1736267530955,0.28701,3485.7,3485.5,40.8]
[1736267531147,0.28702,3485.6,3485.5,40.8]
[1736267531654,10.28702,3485.6,3485.5,40.8]
[1736267531846,10.0,3485.6,3485.3,6.65746527]
[1736267532048,0.28704,3485.4,3485.3,6.65746527]
[1736267532553,10.28704,3485.4,3485.3,6.65746527]
[1736267533455,0.28706,3485.1,3484.6,44.0078]
[1736267533645,0.28707,3485.0,3484.6,44.0078]
[1736267533954,10.0,3485.4,3484.6,44.0078]
[1736267534153,3.05605279,3485.2,3484.6,40.8]
[1736267534354,3.05605279,3485.2,3484.6,44.0078]
[1736267534553,10.0,3485.2,3484.7,0.28709]
[1736267534848,5.69256375,3485.2,3484.6,44.0078]
[1736267535056,0.28704,3485.4,3485.0,3.2078]
[1736267535451,0.28705,3485.2,3485.0,3.2078]
[1736267535753,0.28706,3485.1,3485.0,3.2078]
[1736267536955,2.5758,3485.5,3485.0,3.2078]
[1736267537157,8.55539375,3485.5,3485.4,3.2078]
[1736267537356,0.71743,3486.2,3485.4,3.2078]
[1736267537656,0.287,3485.8,3485.4,3.49483]
[1736267537853,0.287,3485.8,3485.5,40.8]
[1736267538055,0.28701,3485.7,3485.5,40.8]
[1736267538253,8.90036375,3486.3,3485.5,40.8]
[1736267538455,0.28702,3485.6,3485.5,40.8]
[1736267538953,0.28698,3486.1,3485.5,40.8]
[1736267539158,0.287,3485.9,3485.5,40.8]
[1736267539358,8.74861654,3486.2,3485.8,3.2078]
[1736267539851,9.46604654,3486.2,3485.5,40.8]
[1736267540160,0.28702,3485.6,3485.5,40.8]
[1736267540550,3.05605279,3486.2,3485.5,40.8]
[1736267540849,0.28701,3485.8,3485.5,40.8]
[1736267541153,0.287,3485.9,3485.5,40.8]
[1736267541347,8.74861654,3486.2,3485.5,40.8]
[1736267541751,0.287,3485.9,3485.5,40.8]
[1736267541958,0.28701,3485.8,3485.5,40.8]
[1736267542159,8.74861654,3486.2,3485.5,40.8]
[1736267542552,0.28698,3486.1,3485.8,3.2078]
[1736267542751,8.74861654,3486.2,3485.8,3.2078]
[1736267542952,0.28699,3485.9,3485.8,3.2078]
[1736267543757,3.2078,3486.3,3485.8,3.2078]
[1736267544058,8.90036375,3486.3,3485.8,3.2078]
[1736267544358,0.28699,3485.9,3485.8,3.2078]
[1736267544754,5.97955375,3485.9,3485.8,3.2078]
[1736267545051,5.97955375,3485.9,3485.5,40.8]
[1736267545052,0.28702,3485.6,3485.5,40.8]
[1736267545358,1.76,3486.0,3485.5,40.8]
[1736267545656,0.28701,3485.7,3485.5,40.8]
[1736267545851,0.28702,3485.6,3485.5,40.8]
[1736267546356,5.97958375,3485.6,3485.5,40.8]
[1736267546861,8.42118375,3485.6,3485.5,40.8]
[1736267547657,11.11068411,3485.6,3485.5,40.8]
[1736267549948,5.13110036,3485.6,3484.2,3.2078]
[1736267550156,5.13110036,3485.6,3484.6,3.2078]
[1736267550157,0.2871,3484.7,3484.6,3.2078]
[1736267550856,0.2871,3484.7,3484.6,44.0078]
[1736267551354,0.71762,3485.3,3484.6,44.0078]
[1736267551660,0.28708,3485.0,3484.6,44.0078]
[1736267551861,5.69256375,3485.3,3484.6,44.0078]
[1736267552163,0.28709,3484.7,3484.6,44.0078]
[1736267552462,5.69256375,3485.3,3484.6,44.0078]
[1736267552655,0.28708,3484.9,3484.6,44.0078]
[1736267552957,0.28709,3484.7,3484.6,44.0078]
[1736267553160,5.69256375,3485.3,3484.6,44.0078]
[1736267553363,0.28703,3485.5,3485.0,0.28706]
[1736267553555,0.28703,3485.5,3485.3,3.2078]
[1736267553755,0.28704,3485.4,3485.3,3.2078]
[1736267554064,0.71749,3486.0,3485.3,3.2078]
[1736267554263,0.28702,3485.6,3485.3,3.2078]
[1736267554465,0.28702,3485.6,3485.5,40.8]
[1736267554667,5.97958375,3485.6,3485.5,40.8]
[1736267556654,5.0,3485.6,3484.7,6.6846788]
[1736267556855,0.28709,3484.8,3484.7,6.6846788]
[1736267557060,7.73065375,3484.8,3484.7,0.74397881]
[1736267557259,7.73065375,3484.8,3484.7,41.54397881]
[1736267557461,12.39105375,3484.8,3484.7,41.54397881]
[1736267557664,12.39105375,3484.8,3484.4,8.91290507]
[1736267557665,0.28711,3484.5,3484.4,3.36071013]
[1736267557856,2.97661036,3484.5,3484.4,3.36071013]
[1736267558057,2.97661036,3484.5,3484.4,44.16071013]
[1736267558254,2.97661036,3484.5,3484.4,40.8]
[1736267558455,0.2871,3484.6,3484.4,40.8]
[1736267558660,0.28711,3484.5,3484.4,40.8]
[1736267558861,1.751,3484.8,3484.4,40.8]
[1736267559158,0.28709,3484.8,3484.6,3.2078]
[1736267559361,0.28709,3484.7,3484.6,3.2078]
[1736267560361,2.68950036,3484.9,3484.6,3.2078]
[1736267560664,0.28709,3484.8,3484.7,40.8]
[1736267561270,2.03806,3485.2,3484.7,41.08709]
[1736267561461,1.751,3485.2,3484.8,0.28708]
[1736267561769,0.28705,3485.3,3485.1,3.2078]
[1736267562071,2.68950036,3485.8,3485.1,3.2078]
[1736267562256,0.28703,3485.5,3485.1,3.2078]
[1736267562461,0.28705,3485.3,3485.1,3.2078]
[1736267562667,0.28704,3485.4,3485.1,3.2078]
[1736267562865,0.28705,3485.3,3485.1,3.2078]
[1736267563165,0.28705,3485.2,3485.1,3.2078]
[1736267563674,2.68950036,3485.4,3484.7,40.8]
[1736267563965,0.28709,3484.8,3484.7,40.8]
[1736267564966,2.68950036,3485.4,3484.7,40.8]
[1736267565162,2.68950036,3485.8,3485.2,3.2078]
[1736267565366,4.44050036,3486.2,3485.2,3.2078]
[1736267565665,2.68950036,3485.4,3484.7,44.0078]
[1736267565862,0.28707,3485.1,3484.7,3.2078]
[1736267566068,2.68950036,3485.4,3485.3,4.51428775]
[1736267566069,2.97654036,3485.4,3485.3,4.51428775]
[1736267566270,2.97654036,3485.4,3485.3,45.31428775]
[1736267567075,5.35554036,3485.4,3485.3,45.31428775]
[1736267567265,5.35554036,3485.4,3485.3,4.51428775]
[1736267567466,0.71764,3485.2,3484.6,3.2078]
[1736267567773,0.2871,3484.7,3484.6,3.2078]
[1736267568271,0.2871,3484.7,3484.6,44.0078]
[1736267568783,0.71762,3485.3,3484.6,44.0078]
[1736267569072,2.68950036,3485.0,3484.6,48.53078068]
[1736267569272,0.28708,3484.9,3484.6,45.32298068]
[1736267569569,2.68950036,3485.8,3484.7,3.2078]
[1736267569775,0.28701,3485.7,3485.4,3.2078]
[1736267569973,2.68950036,3485.8,3485.4,3.2078]
[1736267570170,2.68950036,3485.8,3485.4,3.49483]
[1736267570476,3.2078,3486.2,3485.4,3.2078]
[1736267570477,2.68950036,3486.2,3485.4,3.2078]
[1736267570670,0.28696,3486.4,3486.1,3.2078]
[1736267571270,4.9317,3486.5,3486.1,3.2078]
[1736267571570,5.21865,3486.5,3486.1,3.2078]
[1736267571771,8.62,3486.9,3486.1,3.2078]
[1736267571976,2.97644036,3486.6,3486.1,3.49477]
[1736267572176,2.97644036,3486.6,3486.1,3.49478]
[1736267572472,2.97647036,3486.2,3486.1,3.2078]
[1736267572673,2.68950036,3486.2,3486.1,3.2078]
[1736267572872,0.28695,3486.5,3486.1,3.2078]
[1736267573070,2.68950036,3486.6,3486.1,3.2078]
[1736267573481,0.28695,3486.5,3486.1,3.2078]
[1736267573769,0.28697,3486.3,3486.2,40.8]
[1736267573970,0.28696,3486.3,3486.2,40.8]
[1736267574575,0.28697,3486.2,3486.1,3.2078]
[1736267574776,0.28702,3485.7,3485.6,3.2078]
[1736267574968,0.28702,3485.7,3485.6,44.0078]
[1736267575475,2.4718,3486.1,3485.6,44.0078]
[1736267575675,0.28701,3485.7,3485.6,44.0078]
[1736267575871,2.68950036,3485.8,3485.6,44.0078]
[1736267576171,0.28701,3485.7,3485.6,44.0078]
[1736267576375,0.28701,3485.7,3485.6,68.88475202]
[1736267576670,0.28703,3485.7,3485.6,65.67695202]
[1736267577576,2.68950036,3485.8,3485.6,65.67695202]
[1736267577777,0.28703,3485.7,3485.6,65.67695202]
[1736267577974,2.68950036,3485.8,3485.6,45.3415754]
[1736267578277,2.97653036,3485.8,3485.6,45.3415754]
[1736267578478,2.68950036,3485.8,3485.6,45.3415754]
[1736267578677,0.28703,3485.7,3485.6,45.3415754]
[1736267578870,0.28703,3485.7,3485.6,40.8]
[1736267579774,5.28703,3485.7,3485.6,40.8]
[1736267580074,0.28705,3485.5,3485.4,10.44938951]
[1736267580277,0.71768,3485.3,3484.7,3.2078]
[1736267580476,0.28711,3484.8,3484.7,3.2078]
[1736267580876,0.28711,3484.8,3484.7,44.0078]
[1736267581272,0.28711,3484.8,3484.7,40.8]
[1736267581877,0.28711,3484.8,3484.7,45.05908852]
[1736267582272,2.68950036,3485.1,3484.7,45.05908852]
[1736267582580,0.28708,3485.1,3484.7,45.05908852]
[1736267582772,3.2078,3485.4,3484.7,45.05908852]
[1736267583079,0.28709,3485.1,3484.7,45.05908852]
[1736267583374,3.2078,3485.4,3484.8,12.77513639]
[1736267583573,0.28704,3485.7,3485.0,3.2078]
[1736267583772,0.28704,3485.7,3485.1,0.28708]
[1736267583968,4.44050036,3485.8,3485.0,3.2078]
[1736267584174,5.4401,3486.1,3485.4,3.2078]
[1736267584578,2.68950036,3485.8,3485.4,3.2078]
[1736267584971,2.97653036,3485.8,3485.4,3.2078]
[1736267585171,2.68950036,3485.8,3485.4,3.2078]
[1736267585879,0.28705,3485.6,3485.4,3.2078]
[1736267586076,0.28705,3485.5,3485.4,3.2078]
[1736267586278,0.28707,3485.3,3485.2,12.77513639]
[1736267586476,0.28706,3485.5,3485.0,3.2078]
[1736267586775,0.28705,3485.6,3485.4,44.0078]
[1736267587081,0.28704,3485.6,3485.4,44.0078]
[1736267587272,1.742,3485.8,3485.4,44.0078]
[1736267587774,0.28705,3485.6,3485.4,44.0078]
[1736267587970,0.28704,3485.7,3485.4,44.0078]
[1736267588171,1.742,3485.8,3485.4,44.0078]
[1736267588381,1.742,3485.8,3485.4,40.8]
[1736267588881,1.742,3485.8,3485.5,0.28705]
[1736267589080,5.4401,3486.1,3485.7,0.28703]
[1736267589276,2.4424,3486.3,3486.0,3.2078]
[1736267589580,5.89730036,3486.1,3485.5,21.78426148]
[1736267589778,2.68950036,3485.6,3485.5,21.78426148]
[1736267589976,2.68950036,3485.6,3485.5,24.99206148]
[1736267590182,2.97654036,3485.6,3485.5,62.58426148]
[1736267590777,2.97654036,3485.6,3485.5,45.06085655]
[1736267591377,7.97654036,3485.6,3485.5,45.06085655]
[1736267591581,2.97654036,3485.6,3485.5,45.06085655]
[1736267592183,2.97654036,3485.6,3485.5,40.8]
[1736267593077,2.68950036,3485.6,3485.5,40.8]
[1736267593385,2.97654036,3485.6,3485.5,40.8]
[1736267594282,6.73330036,3486.0,3485.5,44.0078]
[1736267594583,0.28701,3485.8,3485.5,44.0078]
[1736267595084,0.287,3485.9,3485.7,9.00169182]
[1736267595583,4.71849036,3486.0,3485.7,9.00169182]
[1736267596275,2.68950036,3486.0,3485.9,3.2078]
[1736267596476,2.97649036,3486.0,3485.9,3.2078]
[1736267596982,2.97649036,3486.0,3485.9,44.0078]
[1736267597175,2.97649036,3486.0,3485.8,24.14271419]
[1736267597176,2.68950036,3486.0,3485.8,21.89131419]
[1736267597377,0.287,3485.9,3485.8,21.89131419]
[1736267597571,0.287,3485.9,3485.8,62.69131419]
[1736267597979,0.287,3485.9,3485.8,40.8]
[1736267598786,2.68950036,3486.0,3485.8,40.8]
[1736267598985,2.97650036,3486.0,3485.8,40.8]
[1736267599181,2.68950036,3486.0,3485.8,45.12615466]
[1736267599385,0.287,3485.9,3485.8,45.12615466]
[1736267600189,0.287,3485.9,3485.8,4.32615466]
[1736267600487,4.3077,3485.9,3485.8,4.32615466]
[1736267600886,9.3077,3485.9,3485.8,4.32615466]
[1736267601085,7.5657,3485.9,3485.8,4.32615466]
[1736267601285,4.3077,3485.9,3485.8,45.12615466]
[1736267601979,4.3077,3485.9,3485.8,40.8]
[1736267602389,7.5155,3485.9,3485.8,40.8]
[1736267602984,0.28704,3485.4,3485.3,4.50128761]
[1736267603185,2.97654036,3485.4,3485.3,4.50128761]
[1736267603484,2.97654036,3485.4,3485.3,49.80169182]
[1736267603485,2.97655036,3485.4,3485.3,49.80169182]
[1736267603885,4.71855036,3485.4,3485.3,49.80169182]
[1736267604093,2.68950036,3485.4,3485.3,49.80169182]
[1736267604583,2.97652036,3485.8,3485.3,53.29654182]
[1736267604789,2.68950036,3485.8,3485.6,0.28703]
[1736267605096,0.28699,3486.1,3485.7,3.2078]
[1736267605285,0.28701,3485.9,3485.7,3.2078]
[1736267605590,2.68950036,3486.2,3485.7,3.2078]
[1736267605591,0.28701,3485.8,3485.7,3.2078]
[1736267605793,2.68950036,3486.2,3485.7,3.2078]
[1736267605990,0.28701,3485.9,3485.7,3.2078]
[1736267606188,2.68950036,3486.2,3485.7,16.19338542]
[1736267606390,0.28699,3486.1,3485.7,16.19338542]
[1736267606596,2.68950036,3486.2,3485.7,16.19338542]
[1736267607392,0.28701,3486.0,3485.7,16.19338542]
[1736267607593,2.97651036,3485.8,3485.7,16.19338542]
[1736267607898,2.97651036,3485.8,3485.7,11.25177954]
[1736267608083,7.97651036,3485.8,3485.7,11.25177954]
[1736267608291,0.28709,3484.9,3484.8,0.5]
[1736267608601,0.28709,3484.9,3484.8,41.3]
[1736267609990,2.97659036,3484.9,3484.8,45.34662982]
[1736267610392,0.28709,3484.9,3484.8,45.34662982]
[1736267611095,4.7141,3485.2,3484.8,45.34662982]
[1736267611391,0.28708,3484.9,3484.8,45.34662982]
[1736267612385,0.28708,3485.0,3484.8,45.34662982]
[1736267612583,2.68950036,3485.3,3484.8,45.34662982]
[1736267612784,2.02905,3485.4,3484.8,45.63371982]
[1736267612992,1.742,3485.4,3485.1,3.2078]
[1736267613285,1.742,3485.4,3485.2,2.4111]
[1736267613887,2.68950036,3485.3,3485.1,3.2078]
[1736267614089,2.97655036,3485.3,3485.2,40.8]
[1736267614287,5.22585036,3485.3,3485.2,52.93727772]
[1736267614892,0.28705,3485.3,3485.2,52.93727772]
[1736267615090,4.70955036,3485.3,3485.2,52.93727772]
[1736267615795,4.70955036,3485.3,3485.2,44.84662982]
[1736267616791,2.02005,3485.3,3485.2,44.84662982]
[1736267616997,3.40706036,3485.7,3485.2,44.84662982]
[1736267616998,0.28705,3485.4,3485.2,44.84662982]
[1736267617298,3.49481,3485.8,3485.3,0.28705]
[1736267617492,4.9408,3485.8,3485.3,2.3371]
[1736267617801,3.2078,3485.8,3485.3,2.3371]
[1736267617992,0.28702,3485.7,3485.3,2.3371]
[1736267618188,3.2078,3485.8,3485.3,2.62415]
[1736267618395,3.2078,3485.8,3485.3,2.3371]
[1736267618596,3.2078,3485.8,3485.6,9.00842311]
[1736267618896,0.28701,3485.8,3485.6,9.00842311]
[1736267619300,2.3562,3486.4,3485.6,9.00842311]
[1736267619491,0.28699,3486.0,3485.9,3.2078]
[1736267619987,0.28699,3486.1,3485.9,12.21622311]
[1736267620189,4.95820036,3486.9,3485.9,12.21622311]
[1736267620388,0.28696,3486.4,3485.9,12.50322311]
[1736267620595,1.733,3486.8,3485.9,12.21622311]
[1736267620997,0.28694,3486.7,3485.9,12.21622311]
[1736267621305,1.733,3486.8,3485.9,12.21622311]
[1736267621492,0.28697,3486.3,3486.0,12.13743972]
[1736267621795,0.28698,3486.2,3486.0,12.13743972]
[1736267621994,2.68950036,3486.4,3486.0,12.13743972]
[1736267622198,0.28699,3486.1,3486.0,12.13743972]
[1736267623400,2.53609738,3486.1,3486.0,12.13743972]
[1736267624500,2.53609738,3486.1,3486.0,10.80228685]
[1736267625304,0.28698,3486.2,3486.0,10.80228685]
[1736267625701,0.28697,3486.2,3486.1,2.291]
[1736267625900,0.28697,3486.3,3486.1,2.291]
[1736267626207,0.28697,3486.3,3486.2,40.8]
[1736267626506,3.98210738,3486.7,3486.2,40.8]
[1736267626703,0.28696,3486.4,3486.2,40.8]
[1736267626905,0.28696,3486.5,3486.2,40.8]
[1736267627204,0.28695,3486.5,3486.3,3.2078]
[1736267627403,2.25224321,3487.0,3486.4,2.24910738]
[1736267627593,2.96942321,3487.5,3486.8,3.2078]
[1736267627793,2.24910738,3487.4,3486.9,2.291]
[1736267627993,0.2869,3487.1,3486.9,2.291]
[1736267628306,4.70242321,3487.5,3487.0,2.24910738]
[1736267628307,2.25224321,3487.5,3487.0,2.24910738]
[1736267628500,0.17904322,3487.5,3487.2,3.2078]
[1736267629004,2.24910738,3487.9,3487.2,3.2078]
[1736267629202,0.00200691,3488.0,3487.2,3.2078]